bitfinex/quotes_ETHUSD_20250925
["timestamp","ask_amount","ask_price","bid_price","bid_amount"]
[1758834186856,0.68040135,3902.2,3902.1,3.22532263]
[1758834187071,0.129,3902.2,3902.1,3.22532263]
[1758834187274,0.001,3902.2,3902.1,3.93213559]
[1758834188282,0.001,3902.2,3902.1,3.95776281]
[1758834188700,0.001,3902.2,3902.1,4.74976281]
[1758834189775,0.001,3902.2,3902.1,3.93213559]
[1758834189975,0.001,3902.2,3902.1,10.47113559]
[1758834190360,0.001,3902.2,3902.1,3.93213559]
[1758834190693,0.001,3902.2,3902.1,7.32602263]
[1758834191108,0.001,3902.2,3902.1,7.75632263]
[1758834191953,0.001,3902.2,3902.1,3.35332263]
[1758834192153,0.001,3902.2,3902.1,7.75632263]
[1758834192980,0.001,3902.2,3902.1,7.32602263]
[1758834194008,0.001,3902.2,3901.5,0.792]
[1758834194009,2.56344527,3901.0,3900.9,0.002]
[1758834194297,2.56344527,3901.0,3900.3,0.002]
[1758834194298,2.56370814,3900.6,3900.3,0.002]
[1758834194451,5.5638396,3900.4,3900.3,0.002]
[1758834194651,6.88312,3900.4,3900.3,0.002]
[1758834194900,8.35732,3900.4,3900.3,0.002]
[1758834195074,9.77756223,3900.4,3900.3,0.002]
[1758834195278,11.15744826,3900.4,3900.3,0.002]
[1758834195495,9.77756223,3900.4,3900.3,0.002]
[1758834195669,11.15744826,3900.4,3900.3,0.002]
[1758834196005,9.77756223,3900.4,3900.3,0.002]
[1758834196206,3.35597107,3900.2,3900.1,1e-08]
[1758834196500,16.03048159,3900.2,3898.0,0.02600001]
[1758834196703,16.03048159,3900.2,3898.1,2.56530107]
[1758834196704,2.56475214,3899.1,3898.1,2.56530107]
[1758834196853,6.99875214,3899.1,3898.1,2.56530107]
[1758834197058,5.31947899,3899.1,3898.0,0.02600001]
[1758834197291,4.433,3899.1,3898.1,0.45595352]
[1758834197469,4.433,3899.1,3898.1,0.6626]
[1758834197676,4.433,3899.1,3898.2,2.56526626]
[1758834197854,4.433,3899.1,3898.3,0.58192821]
[1758834198056,6.99769845,3899.1,3898.1,0.6626]
[1758834198266,2.56476389,3899.0,3898.1,0.4303]
[1758834198691,4.433,3899.1,3898.2,2.56527578]
[1758834199251,6.9976992,3899.1,3898.1,2.99564703]
[1758834199491,6.9976992,3899.1,3898.2,2.56525714]
[1758834199658,3.52191542,3899.0,3897.9,7.00043268]
[1758834199859,3.52191542,3899.0,3898.0,2.56541415]
[1758834200488,0.6632,3898.9,3897.8,0.002]
[1758834200674,2.56523206,3898.3,3897.8,0.002]
[1758834200858,2.56541116,3898.1,3897.8,0.002]
[1758834201058,2.56548397,3897.9,3897.8,0.002]
[1758834201258,7.00148397,3897.9,3897.8,0.002]
[1758834201500,7.66468397,3897.9,3897.8,0.002]
[1758834201860,10.66468397,3897.9,3897.8,0.002]
[1758834202083,12.53464041,3897.9,3897.8,0.002]
[1758834202395,13.32664041,3897.9,3897.8,0.002]
[1758834203056,8.89064041,3897.9,3897.8,0.002]
[1758834203263,14.44914041,3897.9,3897.8,0.002]
[1758834203862,14.67464041,3897.9,3897.8,0.002]
[1758834204063,8.09864041,3897.9,3897.8,0.002]
[1758834204396,14.67564041,3897.9,3897.8,0.002]
[1758834204595,15.46764041,3897.9,3897.8,0.002]
[1758834204795,16.15042606,3897.9,3897.8,0.002]
[1758834205204,14.67564041,3897.9,3897.8,0.002]
[1758834205365,15.46764041,3897.9,3897.8,0.002]
[1758834205559,16.15042606,3897.9,3897.8,0.002]
[1758834206073,16.7853219,3897.9,3897.8,0.002]
[1758834206499,15.87006376,3897.9,3897.8,0.002]
[1758834207362,16.54995344,3897.9,3897.8,0.002]
[1758834208797,15.87006376,3897.9,3897.8,0.002]
[1758834209180,16.7853219,3897.9,3897.8,0.002]
[1758834209367,17.29368996,3897.9,3897.8,0.002]
[1758834210264,17.75131903,3897.9,3897.8,0.002]
[1758834210464,16.37843182,3897.9,3897.8,0.002]
[1758834210687,17.75131903,3897.9,3897.8,0.002]
[1758834211613,16.37843182,3897.9,3897.8,0.002]
[1758834212239,17.75131903,3897.9,3897.8,0.002]
[1758834212514,17.75131903,3897.9,3897.4,1e-08]
[1758834212515,2.56574727,3897.5,3897.4,1e-08]
[1758834212675,2.56574727,3897.5,3897.0,0.002]
[1758834212676,6.35801062,3897.1,3897.0,0.002]
[1758834212875,7.01593887,3897.1,3897.0,0.002]
[1758834213086,12.68696343,3897.1,3897.0,0.002]
[1758834213316,14.34631521,3897.1,3897.0,0.002]
[1758834213511,5.20630459,3897.1,3897.0,0.002]
[1758834213720,10.12095281,3897.1,3897.0,0.002]
[1758834214013,12.68696343,3897.1,3897.0,0.002]
[1758834214679,10.54896343,3897.1,3897.0,0.002]
[1758834215012,12.68696343,3897.1,3897.0,0.002]
[1758834215213,13.36406415,3897.1,3897.0,0.002]
[1758834215517,12.48150124,3897.1,3897.0,0.002]
[1758834215716,14.37025647,3897.1,3897.0,0.002]
[1758834215883,11.80424585,3897.1,3897.0,0.002]
[1758834216090,7.79625647,3897.1,3897.0,0.002]
[1758834216291,15.04651186,3897.1,3897.0,0.002]
[1758834216701,12.48050124,3897.1,3897.0,0.002]
[1758834216902,3.54695281,3897.1,3897.0,0.002]
[1758834217231,7.434,3897.1,3897.0,0.6721]
[1758834217423,4.98095281,3897.1,3897.0,3.23817646]
[1758834217726,4.434,3897.1,3897.0,0.6721]
[1758834217940,4.434,3897.1,3897.0,3.23817646]
[1758834218521,4.98095281,3897.1,3897.0,0.6721]
[1758834218920,4.98095281,3897.1,3897.0,3.23817646]
[1758834219622,4.98095281,3897.1,3897.0,0.6721]
[1758834219919,4.98095281,3897.1,3897.0,3.23817646]
[1758834222224,0.54695281,3897.1,3897.0,3.23817646]
[1758834223550,0.54695281,3897.1,3897.0,2.56607646]
[1758834224347,0.54695281,3897.1,3896.8,2.5662051]
[1758834224646,1.36927267,3896.9,3896.8,2.5662051]
[1758834224848,1.91622548,3896.9,3896.8,2.5662051]
[1758834225048,1.91622548,3896.9,3896.8,3.09245612]
[1758834225249,1.46012844,3896.9,3896.8,4.6591182]
[1758834225413,0.54695281,3896.9,3896.8,9.72755612]
[1758834225618,0.54695281,3896.9,3896.8,11.86555612]
[1758834226044,0.54695281,3896.9,3896.8,3.76255612]
[1758834226229,1.46076174,3896.9,3896.8,3.2363051]
[1758834226432,0.54695281,3896.9,3896.8,3.2363051]
[1758834226655,0.54695281,3896.9,3896.8,3.26196718]
[1758834227020,1.23250461,3896.9,3896.8,3.2363051]
[1758834227356,0.001,3897.9,3897.8,2.56554979]
[1758834227552,0.001,3897.9,3897.8,3.23564979]
[1758834228123,0.001,3897.9,3897.8,2.56554979]
[1758834228344,0.001,3897.9,3897.4,0.128]
[1758834228542,0.128,3897.7,3897.6,2.56563277]
[1758834229151,0.128,3897.7,3897.4,2.5658033]
[1758834229323,1.49727267,3897.7,3897.4,2.5658033]
[1758834229523,1.49727267,3897.7,3897.1,2.6939672]
[1758834229524,1.36927267,3897.6,3897.2,2.56588883]
[1758834229736,1.36927267,3897.5,3897.1,0.128]
[1758834230242,1.36927267,3897.5,3897.4,2.5658131]
[1758834230647,1.36927267,3897.5,3897.4,3.2569131]
[1758834231055,1.36927267,3897.5,3897.4,2.5658131]
[1758834231353,1.36927267,3897.5,3897.0,2.56602431]
[1758834231354,0.128,3897.4,3897.0,2.56602431]
[1758834231554,1.37303652,3897.3,3897.0,2.56602431]
[1758834232062,1.37303652,3897.3,3896.7,0.128]
[1758834232265,1.37303652,3897.3,3897.1,2.5659539]
[1758834232460,1.50103652,3897.4,3897.1,2.56598657]
[1758834233159,1.50103652,3897.4,3896.7,0.128]
[1758834233365,1.50103652,3897.4,3897.2,2.56590211]
[1758834234163,1.50103652,3897.4,3897.3,2.56587894]
[1758834235965,1.37303652,3897.8,3897.7,2.56561561]
[1758834236463,0.128,3897.7,3897.6,2.56566525]
[1758834237858,1.37403652,3897.9,3897.7,2.56561561]
[1758834238065,1.37403652,3897.9,3897.8,2.56554979]
[1758834238465,0.001,3897.9,3897.8,2.56554979]
[1758834239183,0.54996425,3897.9,3897.8,2.56554979]
[1758834240446,0.54996425,3897.9,3897.4,0.128]
[1758834240645,0.54896425,3897.8,3897.7,2.56561561]
[1758834240887,0.54896425,3897.8,3897.7,3.7826519]
[1758834241179,0.001,3897.9,3897.8,2.56554979]
[1758834241344,0.54929787,3897.9,3897.8,2.56554979]
[1758834241543,0.54929787,3897.9,3897.8,3.00724979]
[1758834241743,0.54929787,3897.9,3897.7,0.65393629]
[1758834241979,0.54829787,3897.8,3897.5,2.56570358]
[1758834242175,0.67629787,3897.7,3897.3,0.002]
[1758834242476,0.43,3897.8,3897.5,2.56574727]
[1758834242477,0.54829787,3897.6,3897.5,2.56574727]
[1758834243265,0.54829787,3897.6,3897.4,2.56578992]
[1758834243466,0.54829787,3897.5,3897.4,2.56578992]
[1758834243644,0.54829787,3897.5,3897.3,0.002]
[1758834243845,1.01389787,3897.4,3897.3,0.002]
[1758834245575,0.54829787,3897.4,3897.3,0.002]
[1758834246495,7.02403439,3897.4,3897.3,0.002]
[1758834246654,0.54829787,3897.4,3897.3,0.002]
[1758834246855,0.54829787,3897.4,3897.3,2.56787894]
[1758834247175,0.54829787,3897.4,3897.3,3.08125713]
[1758834247355,0.54829787,3897.4,3897.3,3.78635713]
[1758834248078,0.54829787,3897.4,3897.3,3.31795713]
[1758834248282,0.54829787,3897.4,3897.3,3.78635713]
[1758834248478,0.001,3897.9,3897.8,2.56554979]
[1758834248777,0.55029171,3897.9,3897.8,2.56554979]
[1758834250888,1.24199171,3897.9,3897.4,2.56574793]
[1758834251053,5.65199171,3897.8,3897.4,2.56574793]
[1758834251253,0.54929171,3897.7,3897.6,4.10666104]
[1758834251451,0.54929171,3897.7,3897.3,0.002]
[1758834251452,1.24099171,3897.7,3897.3,0.002]
[1758834251758,1.24099171,3897.6,3897.4,2.56576293]
[1758834252085,0.54929171,3897.5,3897.4,2.56576293]
[1758834252284,0.67729171,3897.5,3897.4,2.56576293]
[1758834253153,0.128,3897.5,3897.4,2.56576293]
[1758834254179,0.128,3897.5,3897.4,3.15220901]
[1758834254576,0.001,3897.9,3897.8,2.56554979]
[1758834255471,0.001,3897.9,3897.8,3.27064979]
[1758834255905,0.001,3897.9,3897.8,3.39864979]
[1758834256604,0.001,3898.7,3898.2,7.89828654]
[1758834256807,1e-08,3898.9,3898.8,4.89789176]
[1758834257104,1e-08,3898.9,3898.8,9.30889176]
[1758834257334,1e-08,3898.9,3898.8,2.56489176]
[1758834257471,1e-08,3898.9,3898.8,6.97589176]
[1758834257677,1e-08,3898.9,3898.8,10.01399176]
[1758834257886,1e-08,3898.9,3898.8,10.98376447]
[1758834259573,1e-08,3898.9,3898.8,13.98376447]
[1758834260429,0.6758,3901.0,3899.1,0.792]
[1758834260630,0.2279,3901.5,3900.8,2.5635767]
[1758834260810,2.138,3901.6,3900.0,2.56408673]
[1758834260811,0.6758,3900.8,3900.0,4.41]
[1758834261141,0.4479,3901.1,3900.8,2.5635767]
[1758834261552,0.6758,3901.2,3900.8,2.5635767]
[1758834261853,4.41,3901.5,3900.8,2.5635767]
[1758834263005,4.41,3901.5,3900.8,2.58921246]
[1758834263201,4.41,3901.5,3900.8,2.5635767]
[1758834263454,0.6958,3900.9,3900.8,2.5635767]
[1758834264015,0.6958,3900.9,3900.7,2.56363038]
[1758834264254,0.6758,3900.8,3900.6,2.56365378]
[1758834264430,0.6758,3900.7,3900.6,2.56365378]
[1758834264633,0.6758,3900.7,3900.5,2.56375734]
[1758834264805,0.02,3900.9,3900.8,2.5635767]
[1758834267539,0.6958,3900.9,3900.5,4.409]
[1758834267736,0.02,3900.9,3900.5,6.97277321]
[1758834267904,0.6758,3900.8,3900.5,6.97277321]
[1758834268444,0.6758,3900.8,3900.7,2.56364242]
[1758834269426,0.6758,3900.8,3900.5,4.408]
[1758834269766,0.02,3900.9,3900.8,2.5635767]
[1758834270074,0.02,3900.9,3900.6,2.56370814]
[1758834270075,0.6758,3900.8,3900.5,4.408]
[1758834270230,0.02,3900.9,3900.5,4.408]
[1758834270432,0.6758,3900.8,3900.5,4.408]
[1758834270666,0.6758,3900.7,3900.5,4.408]
[1758834270967,0.2279,3900.7,3900.6,2.56370091]
[1758834271456,0.02,3900.9,3900.8,2.5635767]
[1758834273664,0.6958,3900.9,3900.3,0.128]
[1758834273958,0.6958,3900.9,3900.0,2.692077]
[1758834273959,0.128,3900.6,3900.0,2.692077]
[1758834274160,0.6758,3900.5,3899.9,2.56412297]
[1758834274364,0.128,3900.0,3899.1,2.136]
[1758834274563,2.56423406,3899.8,3898.8,0.002]
[1758834274737,0.128,3899.0,3898.8,0.002]
[1758834274938,0.128,3899.0,3898.9,2.56482597]
[1758834275161,0.128,3899.2,3899.1,2.56469441]
[1758834278665,0.129,3899.2,3899.1,2.56469441]
[1758834283235,0.001,3899.2,3899.1,8.775593]
[1758834283458,0.001,3899.2,3899.1,8.74994606]
[1758834284156,0.001,3899.2,3899.1,13.95494606]
[1758834284347,0.001,3899.2,3899.1,14.08294606]
[1758834285573,0.001,3899.2,3899.1,11.81294606]
[1758834285741,0.001,3899.2,3899.1,16.21994606]
[1758834287146,0.02,3900.9,3900.7,2.56364242]
[1758834287347,0.02,3900.9,3900.7,4.407]
[1758834287677,1.22249403,3900.8,3900.4,4.407]
[1758834287882,0.02,3900.9,3900.6,2.56365154]
[1758834287883,1.23699403,3900.7,3900.6,2.56365154]
[1758834288190,0.6903,3900.7,3900.6,2.56365154]
[1758834288388,1.23699403,3900.7,3900.6,2.56365154]
[1758834288574,1.37549343,3900.7,3900.3,0.128]
[1758834288781,0.128,3900.3,3900.2,2.56397107]
[1758834288959,0.6903,3900.3,3899.8,2.5642258]
[1758834289299,0.128,3900.0,3899.8,2.5642258]
[1758834289445,0.6903,3899.9,3899.8,2.5642258]
[1758834289852,1.23701793,3900.4,3899.9,2.56416831]
[1758834290061,0.128,3900.2,3899.9,2.56416831]
[1758834290392,0.8183,3900.2,3899.9,2.56416831]
[1758834290746,0.8183,3900.2,3900.1,2.5640214]
[1758834291150,1.36487017,3900.2,3900.1,2.5640214]
[1758834291358,0.128,3900.2,3900.1,2.5640214]
[1758834292888,0.128,3900.2,3899.9,4.406]
[1758834293082,0.6903,3900.1,3899.7,1.541]
[1758834293293,0.8183,3900.0,3899.8,2.56422487]
[1758834293600,0.6903,3899.9,3899.8,2.56422487]
[1758834294011,0.6903,3899.9,3899.5,4.406]
[1758834294164,0.6903,3899.8,3899.4,4.10548967]
[1758834294785,0.6903,3899.7,3899.4,4.10548967]
[1758834295322,0.67418561,3900.0,3899.6,2.56433851]
[1758834295323,0.128,3900.0,3899.6,2.56433851]
[1758834295504,0.6903,3899.9,3899.6,2.56431969]
[1758834295820,0.6903,3899.8,3899.7,2.56429981]
[1758834297608,0.67418561,3900.0,3899.8,2.56418078]
[1758834297789,0.8183,3900.0,3899.9,2.56416831]
[1758834298109,1.36489906,3900.0,3899.9,2.56416831]
[1758834298415,1.36489906,3900.0,3899.8,2.56421193]
[1758834298609,0.375,3900.0,3899.8,2.56421193]
[1758834298839,0.8183,3900.0,3899.8,2.56421193]
[1758834299225,0.128,3900.0,3899.9,2.56416831]
[1758834299398,0.67479904,3900.0,3899.9,2.56416831]
[1758834299600,0.67479904,3900.0,3899.6,2.56636053]
[1758834299815,1.23734774,3899.9,3899.6,2.5663481]
[1758834300097,0.6903,3899.8,3899.6,2.5663481]
[1758834300444,11.46261247,3899.7,3899.6,0.002]
[1758834300656,2.29794405,3899.7,3899.6,0.002]
[1758834300795,3.0,3899.9,3899.6,0.002]
[1758834301111,0.54734029,3899.8,3899.6,0.002]
[1758834301308,0.54734029,3899.7,3899.6,0.002]
[1758834301510,0.54734029,3899.7,3899.6,2.56636557]
[1758834302934,0.67534029,3900.0,3899.9,2.56416831]
[1758834304038,0.67534029,3900.0,3899.6,0.002]
[1758834304253,1.24924029,3899.9,3899.6,0.002]
[1758834304430,3.11162988,3899.8,3899.6,0.002]
[1758834304630,3.1116401,3899.7,3899.6,0.002]
[1758834304807,1.24924029,3899.7,3899.6,0.002]
[1758834306339,5.65424029,3899.7,3899.6,0.002]
[1758834306645,12.16597682,3899.7,3899.6,0.002]
[1758834306809,12.16597682,3899.7,3898.8,0.002]
[1758834306810,2.56482597,3898.9,3898.8,0.002]
[1758834307137,12.65416626,3898.9,3898.8,0.002]
[1758834307331,13.35606626,3898.9,3898.8,0.002]
[1758834307525,15.08520421,3898.9,3898.8,0.002]
[1758834308344,15.99746819,3898.9,3898.8,0.002]
[1758834309436,15.08520421,3898.9,3898.8,0.002]
[1758834309961,15.99746819,3898.9,3898.8,0.002]
[1758834310649,16.78946819,3898.9,3898.8,0.002]
[1758834310815,15.98008024,3898.9,3898.8,0.002]
[1758834311211,17.29309117,3898.9,3898.8,0.002]
[1758834311745,15.98008024,3898.9,3898.8,0.002]
[1758834312553,10.8025301,3898.9,3898.8,0.002]
[1758834312840,17.3445301,3898.9,3898.8,0.002]
[1758834313039,15.2075301,3898.9,3898.8,0.002]
[1758834313213,15.98008024,3898.9,3898.8,0.002]
[1758834313408,17.3445301,3898.9,3898.8,0.002]
[1758834313638,15.98008024,3898.9,3898.8,0.002]
[1758834314055,9.55517347,3898.9,3898.8,0.002]
[1758834314362,10.51716626,3898.9,3898.8,0.002]
[1758834314531,7.51716626,3898.9,3898.8,0.002]
[1758834314940,10.51716626,3898.9,3898.8,0.002]
[1758834315235,7.95234029,3898.9,3898.8,0.002]
[1758834315446,9.03975132,3898.9,3898.8,0.002]
[1758834315737,11.057237,3898.9,3898.8,0.002]
[1758834315950,11.60272902,3898.9,3898.8,0.002]
[1758834316150,12.30462902,3898.9,3898.8,0.002]
[1758834319369,13.09662902,3898.9,3898.8,0.002]
[1758834319570,13.7785397,3898.9,3898.8,0.002]
[1758834319972,3.35708913,3898.5,3898.4,0.002]
[1758834320186,11.30758115,3898.5,3898.4,0.002]
[1758834320469,13.34409616,3898.5,3898.4,0.002]
[1758834321067,13.44699654,3898.5,3898.4,0.002]
[1758834321634,13.84937053,3898.5,3898.4,0.002]
[1758834321945,14.20951904,3898.5,3898.4,0.002]
[1758834322472,17.26154684,3898.5,3898.4,0.002]
[1758834322671,15.89901904,3898.5,3898.4,0.002]
[1758834323074,16.74885543,3898.5,3898.4,0.002]
[1758834323450,15.28385543,3898.5,3898.4,0.002]
[1758834323654,15.18095505,3898.5,3898.4,0.002]
[1758834323959,3.07386592,3898.5,3898.4,0.002]
[1758834324272,4.80733639,3898.5,3898.4,0.7051]
[1758834324639,4.405,3898.5,3898.4,0.7051]
[1758834324970,7.19,3898.5,3898.4,3.27025493]
[1758834325174,0.2255,3899.6,3898.4,3.27025493]
[1758834325175,2.138,3899.2,3899.0,2.56474618]
[1758834325383,4.405,3899.1,3899.0,2.56474618]
[1758834325877,4.405,3899.1,3899.0,3.26784618]
[1758834326368,4.405,3899.2,3899.1,2.56468333]
[1758834326570,0.5456084,3899.7,3899.1,0.7031]
[1758834326774,4.405,3899.5,3899.4,2.5644971]
[1758834326961,4.405,3899.5,3899.4,3.2675971]
[1758834327746,4.405,3899.5,3899.4,0.7031]
[1758834327946,4.405,3899.5,3899.4,3.2675971]
[1758834328442,0.001,3899.7,3899.4,0.7031]
[1758834328642,4.405,3899.6,3899.4,0.7031]
[1758834328867,4.405,3899.6,3899.4,0.2291]
[1758834329045,0.001,3899.7,3899.6,2.56436557]
[1758834329256,4.406,3899.7,3899.5,0.2291]
[1758834329461,4.405,3899.6,3899.0,2.56476019]
[1758834329655,4.405,3899.6,3899.1,0.02564694]
[1758834330087,0.128,3899.4,3899.3,2.56456287]
[1758834330782,0.128,3899.4,3899.3,3.26766287]
[1758834332680,0.128,3899.4,3899.3,2.56456287]
[1758834332978,0.128,3899.4,3899.3,2.79366287]
[1758834333385,0.128,3899.4,3899.3,3.26766287]
[1758834334082,0.128,3899.4,3899.3,2.79366287]
[1758834335354,0.128,3899.4,3899.3,3.26766287]
[1758834336155,0.001,3899.6,3899.5,2.56443133]
[1758834336361,0.001,3899.6,3899.5,3.26753133]
[1758834336973,0.001,3899.6,3899.5,3.29317564]
[1758834337170,0.001,3899.6,3899.5,3.26753133]
[1758834337374,0.001,3899.6,3899.5,4.57586432]
[1758834337584,0.001,3900.1,3900.0,2.56410256]
[1758834337765,0.001,3900.1,3900.0,7.09510256]
[1758834338091,0.001,3900.1,3900.0,2.92120256]
[1758834338288,0.001,3900.1,3900.0,7.32420256]
[1758834338504,0.001,3900.1,3900.0,2.69210256]
[1758834338702,0.001,3900.1,3900.0,2.56410256]
[1758834339200,3.371,3900.1,3899.2,2.56457137]
[1758834339366,3.371,3900.1,3899.3,2.56450961]
[1758834339367,3.12674684,3900.0,3899.3,2.56450961]
[1758834339564,0.001,3900.1,3899.2,2.333]
[1758834339764,0.001,3900.1,3900.0,3.35610256]
[1758834340005,0.001,3900.8,3900.3,2.56390534]
[1758834341800,0.001,3900.8,3899.8,5.968]
[1758834341999,0.2255,3900.6,3900.1,2.56402442]
[1758834342298,0.2255,3900.6,3899.8,5.968]
[1758834342608,0.2255,3900.6,3900.3,2.56390534]
[1758834342790,0.2255,3900.6,3900.2,2.56395976]
[1758834343185,0.2255,3900.6,3900.3,2.56390534]
[1758834343693,0.001,3900.8,3900.3,5.32080609]
[1758834344607,0.001,3900.8,3900.3,2.56390534]
[1758834348185,7.19,3900.7,3900.3,2.56390534]
[1758834349025,0.128,3900.6,3900.3,2.56390534]
[1758834349884,0.128,3900.6,3899.6,2.5643366]
[1758834349885,7.19,3900.7,3899.2,1.541]
[1758834350092,7.19,3900.7,3899.1,2.56469096]
[1758834350093,0.001,3901.2,3901.1,4.10437955]
[1758834350285,0.001,3901.2,3901.1,14.41137955]
[1758834350486,0.001,3901.6,3901.5,4.10411674]
[1758834350717,1e-08,3902.9,3902.8,2.56226299]
[1758834352787,0.00100001,3902.9,3902.8,2.56226299]
[1758834353015,0.00100001,3902.9,3902.8,2.79486299]
[1758834354515,0.00100001,3902.9,3902.8,2.56226299]
[1758834354705,0.00100001,3902.9,3902.7,2.56229556]
[1758834355088,0.00100001,3902.9,3902.0,0.2326]
[1758834355288,0.00100001,3902.9,3901.3,1.541]
[1758834355289,0.6764,3902.8,3901.8,2.56291967]
[1758834355518,0.6764,3902.8,3902.3,2.56258251]
[1758834355727,1.00035325,3902.8,3902.0,3.509]
[1758834355931,0.6764,3902.8,3902.5,2.56240957]
[1758834356127,0.2292,3902.8,3902.5,2.56240957]
[1758834356594,0.2292,3902.8,3902.0,3.509]
[1758834356786,0.6764,3902.8,3902.3,2.56253652]
[1758834356992,0.2292,3902.7,3902.4,2.5625168]
[1758834357818,0.2292,3902.7,3902.2,2.56264308]
[1758834358021,2.79153086,3902.7,3902.0,2.56277518]
[1758834358223,0.32397309,3902.6,3902.0,2.56277518]
[1758834358524,0.2292,3902.5,3902.1,2.56270561]
[1758834358725,0.2292,3902.4,3902.1,2.56270561]
[1758834358921,0.2292,3902.4,3902.0,2.56276621]
[1758834359716,0.32397309,3902.6,3901.7,4.46]
[1758834359894,0.32397309,3902.6,3901.8,0.2326]
[1758834360101,0.54433249,3902.9,3901.9,0.4574]
[1758834360302,0.54333248,3902.8,3902.4,2.56247411]
[1758834360701,0.128,3902.4,3902.3,2.56258196]
[1758834361119,0.128,3902.4,3902.3,2.79518196]
[1758834361737,0.00100001,3902.9,3902.8,2.56226299]
[1758834361936,0.00100001,3902.9,3902.8,3.25226299]
[1758834362302,0.00100001,3902.9,3902.8,5.82258596]
[1758834365512,0.00100001,3902.9,3902.4,1.7818]
[1758834365713,0.00100001,3902.9,3902.8,2.56226299]
[1758834366246,0.00100001,3902.9,3902.8,2.80306299]
[1758834366449,0.00100001,3902.9,3902.8,3.25416299]
[1758834366659,0.00100001,3902.9,3902.8,9.24816299]
[1758834366839,0.00100001,3902.9,3902.8,10.43177603]
[1758834367359,0.00100001,3902.9,3902.8,11.22377603]
[1758834368738,0.00100001,3902.9,3902.8,10.43177603]
[1758834369135,0.00100001,3902.9,3902.8,11.22377603]
[1758834371655,0.00100001,3902.9,3902.8,14.22377603]
[1758834372539,0.00100001,3902.9,3902.8,14.35177603]
[1758834373424,1e-08,3903.7,3903.6,4.89473788]
[1758834373619,1e-08,3903.7,3903.6,11.96521167]
[1758834373861,1e-08,3903.7,3903.6,12.65711167]
[1758834374080,0.90751697,3905.7,3905.5,2.5604482]
[1758834374280,1.23673899,3905.6,3905.3,4.445]
[1758834374574,1.23673899,3905.5,3905.3,4.465]
[1758834374793,0.6924,3905.4,3905.3,2.56057718]
[1758834374943,1.23640546,3905.4,3905.3,2.56057718]
[1758834375144,0.54400546,3905.8,3905.3,0.02560622]
[1758834375378,0.2438,3906.1,3905.8,2.56029494]
[1758834375575,0.56373141,3905.9,3905.8,2.56029494]
[1758834376143,1.25613141,3905.9,3905.3,4.47]
[1758834376365,0.02,3905.9,3905.8,2.56029494]
[1758834376575,1.25587045,3905.9,3905.7,2.56030787]
[1758834376757,0.02,3905.9,3905.8,2.56029494]
[1758834376956,0.56352275,3905.9,3905.8,2.56029494]
[1758834377455,1.25592275,3905.9,3905.8,2.56029494]
[1758834377682,1.25592275,3905.9,3905.7,2.56036006]
[1758834377854,0.54352275,3905.8,3905.7,2.56036006]
[1758834378256,0.90751697,3906.7,3906.4,2.55990169]
[1758834378589,0.2395,3906.6,3906.4,2.55988021]
[1758834378745,0.2395,3906.6,3906.5,2.55983617]
[1758834380191,0.02,3906.9,3906.8,2.5596396]
[1758834380978,0.2595,3906.9,3906.8,2.5596396]
[1758834381277,0.02,3906.9,3906.8,2.5596396]
[1758834381689,0.2595,3906.9,3906.8,2.5596396]
[1758834381889,0.7083,3906.9,3906.8,2.5596396]
[1758834382387,0.7083,3906.9,3906.6,2.55972198]
[1758834382589,0.6883,3906.8,3906.6,2.5597249]
[1758834382759,0.02,3906.9,3906.7,2.55970512]
[1758834382950,0.02,3906.9,3906.8,2.5596396]
[1758834383697,0.02,3906.9,3906.8,3.2353396]
[1758834383859,0.02,3906.9,3906.8,3.96764682]
[1758834384391,0.02,3906.9,3906.8,4.75964682]
[1758834384763,0.1272,3908.0,3907.8,2.55898459]
[1758834385293,0.4488,3908.4,3907.8,2.55898459]
[1758834385493,0.1272,3908.2,3907.8,2.55898459]
[1758834386309,0.1272,3908.2,3907.8,2.58457443]
[1758834386470,0.2395,3908.8,3907.8,3.03287443]
[1758834386654,0.1272,3908.5,3907.8,3.38747443]
[1758834387459,0.3667,3908.5,3907.8,2.71177443]
[1758834387663,0.1272,3908.5,3907.8,2.68618459]
[1758834387987,0.1272,3908.5,3907.4,0.2274]
[1758834387988,0.23950001,3907.9,3907.4,0.1272]
[1758834388154,1e-08,3907.9,3907.4,2.68644655]
[1758834388354,1e-08,3907.9,3907.5,0.02559181]
[1758834388559,0.2395,3907.8,3907.6,7.04706957]
[1758834388762,0.2395,3907.7,3907.4,4.487]
[1758834388967,0.00100001,3907.9,3906.8,1.37151083]
[1758834389192,0.2395,3907.7,3906.9,7.0485484]
[1758834389495,0.4488,3907.6,3906.9,4.489]
[1758834389799,0.2395,3907.5,3906.7,9.17969663]
[1758834389993,1.01304691,3907.4,3906.7,4.487]
[1758834390160,0.4488,3907.4,3906.7,4.487]
[1758834390365,0.2395,3907.3,3906.7,4.487]
[1758834390563,0.2395,3907.3,3906.7,7.04667215]
[1758834390761,0.2395,3907.3,3906.7,4.487]
[1758834391296,0.54282569,3907.2,3906.6,2.55971638]
[1758834391490,0.9218583,3907.2,3906.5,4.486]
[1758834391697,0.54282569,3907.1,3906.6,2.5597615]
[1758834392197,0.37903261,3907.2,3906.5,4.486]
[1758834392492,0.54336,3907.1,3906.4,2.55987327]
[1758834392717,0.54336,3907.0,3906.3,4.482]
[1758834392882,0.54336,3906.9,3906.3,4.482]
[1758834393083,0.54336,3906.8,3906.4,2.55989873]
[1758834393278,0.6883,3907.1,3906.5,2.55982135]
[1758834393478,0.54351422,3907.0,3906.5,2.55982135]
[1758834393672,0.54351422,3906.9,3906.6,0.0255977]
[1758834393883,0.54351422,3906.8,3906.3,4.482]
[1758834394083,0.54351156,3906.7,3906.1,2.133]
[1758834394283,4.6923287,3907.3,3906.1,9.17206765]
[1758834394486,2.04680858,3907.2,3906.3,2.55996723]